Cogmind - Beta 10.2 --- EXPLORER MODE // 2021.01.15 @ 20:19:24 Player: Storm Mk9 Result: Self-destructed Performance ------------- Evolutions (4) 2000 Regions Visited (17) 3400 Robots Destroyed (145) 725 Value Destroyed (4838) 4838 Prototype IDs (44) 880 Alien Tech Used (0) 0 Bonus (1059) 1059 TOTAL SCORE: 12902 Bonus ------- High Alert Combat Kills 229 Follower Combat Kills 35 Entered Garrisons 200 Aligned with FarCom 300 Met Data Miner 300 Friendly Fire -5 Cogmind --------- Core Integrity 726/850 Matter 186/300 Energy 150/150 System Corruption 13% Temperature Cool (0) Movement Flying (99) Ox1 Location -6/Factory Parts ------- > --- POWER (3) -------- Light Angular Momentum Engine > --- PROPULSION (5) --- Improved Flight Unit Cooled VTOL Module > --- UTILITY (4) ------ Advanced Heat Sink Hacking Suite Hacking Suite > --- WEAPON (4) ------- Magnetic Acceleration Cannon > --- INVENTORY (4) ---- Light Deuterium Engine Peak State ------------ > --- POWER ------------ Light Deuterium Engine Light Deuterium Engine Light Fission Core > --- PROPULSION ------- Improved Flight Unit Improved Flight Unit Cesium-ion Thruster Xenon Bombardment Thruster Cooled VTOL Module > --- UTILITY ---------- Improved Heat Sink Advanced Heat Sink Improved Cooling System Hacking Suite > --- WEAPON ----------- Magnetic Acceleration Cannon Remote Datajack > --- INVENTORY -------- Light Nuclear Core Relay Coupler [Hunter] Relay Coupler [Behemoth] [Rating: 54] Favorites ----------- Power Ion Engine Engine Ion Engine Power Core Light Nuclear Core Propulsion Light Treads Treads Light Treads Flight Unit Improved Flight Unit Utility Improved Heat Sink Device Improved Heat Sink Processor Seismic Analyzer Hackware Hacking Suite Protection Improved Weapon Shielding Weapon Heavy Assault Rifle Energy Gun Shock Rifle Ballistic Gun Heavy Assault Rifle Ballistic Cannon Assault Cannon Launcher EMP Blaster Special Weapon Remote Datajack Piercing Weapon Makeshift Spear Special Melee Weapon Datajack Build | -11 -10 -10 -9 -9 -9 -8 -8 -8 -8 -7 -7 -7 -7 -6 -6 -6 -6 ------- Run | Scr Mat Min Mat Min Exi Min Mat Gar Mat Fac Low Low Dat Pro Fac Was Fac Slots Evolved 9 | . 1 . 2 . . . 2 . . 2 . . . . 2 . . Power 2 | . 1 . . . . . . . . . . . . . 1 . . Propulsion 3 | . . . . . . . . . . 2 . . . . 1 . . Utility 2 | . . . 1 . . . 1 . . . . . . . . . . Weapon 2 | . . . 1 . . . 1 . . . . . . . . . . Parts Attached 132 | 7 3 5 9 5 . 3 32 13 10 16 4 1 . 1 5 1 17 Power 31 | 1 1 1 2 2 . 1 4 2 . 6 1 . . 1 3 1 5 Engine 19 | 1 1 1 2 2 . 1 2 1 . 2 . . . . 1 1 4 Core 12 | . . . . . . . 2 1 . 4 1 . . 1 2 . 1 Reactor . | . . . . . . . . . . . . . . . . . . Propulsion 24 | 2 . . 2 . . . 6 3 3 3 1 . . . 2 . 2 Treads 14 | 2 . . 2 . . . 6 3 1 . . . . . . . . Leg . | . . . . . . . . . . . . . . . . . . Wheel . | . . . . . . . . . . . . . . . . . . Hover . | . . . . . . . . . . . . . . . . . . Flight 10 | . . . . . . . . . 2 3 1 . . . 2 . 2 Utility 26 | 2 1 1 2 1 . 1 5 3 4 1 2 1 . . . . 2 Device 19 | 1 . 1 2 1 . 1 2 3 4 1 2 . . . . . 1 Storage . | . . . . . . . . . . . . . . . . . . Processor 1 | . 1 . . . . . . . . . . . . . . . . Hackware 3 | . . . . . . . 1 . . . . 1 . . . . 1 Protection 3 | 1 . . . . . . 2 . . . . . . . . . . Artifact . | . . . . . . . . . . . . . . . . . . Weapon 51 | 2 1 3 3 2 . 1 17 5 3 6 . . . . . . 8 Energy Gun 15 | 1 1 2 2 . . . 7 2 . . . . . . . . . Energy Cannon . | . . . . . . . . . . . . . . . . . . Ballistic Gun 10 | 1 . . . . . 1 1 1 2 4 . . . . . . . Ballistic Cannon 14 | . . 1 . 1 . . 3 1 . . . . . . . . 8 Launcher 9 | . . . 1 . . . 6 1 . 1 . . . . . . . Special Weapon 1 | . . . . . . . . . . 1 . . . . . . . Impact Weapon . | . . . . . . . . . . . . . . . . . . Slashing Weapon . | . . . . . . . . . . . . . . . . . . Piercing Weapon 1 | . . . . 1 . . . . . . . . . . . . . Special Melee Weapon 1 | . . . . . . . . . 1 . . . . . . . . Unidentified Prototypes 10 | . . 1 1 . . . 4 . 1 2 . . . . . . 1 Parts Lost 31 | . . . . 5 . . 2 5 4 . 3 . . 4 . 1 7 Power 7 | . . . . 1 . . . 1 . . 1 . . 2 . . 2 Propulsion 7 | . . . . . . . 1 1 1 . 1 . . . . . 3 Utility 7 | . . . . 1 . . . 1 1 . 1 . . 1 . . 2 Weapon 10 | . . . . 3 . . 1 2 2 . . . . 1 . 1 . Highest Loss Streak 5 | . . . . 3 . . 1 3 3 . 3 . . 4 . 1 5 Average Slot Usage (%) 93 | . 99 100 99 97 90 98 96 91 92 98 95 86 92 76 72 79 72 Engine 13 | . 24 25 20 19 20 20 5 11 16 6 . . . . 1 6 11 Core 4 | . . . . . . . 10 3 . 7 12 14 14 8 10 11 5 Treads 13 | . 25 25 19 20 20 20 15 14 8 . . . . . . . . Flight 7 | . . . . . . . . . 7 28 27 28 28 28 29 30 26 Device 18 | . 12 12 20 19 20 30 19 20 23 21 23 21 21 15 12 12 14 Processor 3 | . 2 12 10 10 10 . . . . . . . . . . . . Hackware 3 | . . . . . . . 3 8 8 7 2 1 7 7 6 6 8 Protection 2 | . 9 . . . . . 6 3 . . . . . . . . . Energy Gun 8 | . 21 25 20 10 . . 13 6 . . . . . . . . . Ballistic Gun 5 | . 2 . . . . 8 1 4 17 20 20 14 14 9 6 5 . Ballistic Cannon 4 | . . . . 7 10 10 9 7 2 . . . . . . . 2 Launcher 3 | . . . 9 8 . . 5 7 2 . . . . . . . . Special Weapon 1 | . . . . . . . . . . 4 7 7 7 7 6 6 2 Piercing Weapon 1 | . . . . 1 10 10 1 . . . . . . . . . . Naked Turns . | . . . . . . . . . . . . . . . . . . Heaviest Build 37 | 13 18 20 26 28 24 26 36 32 30 29 27 23 23 23 24 24 37 Greatest Support 45 | 40 40 40 40 40 40 40 45 44 45 33 32 23 23 23 29 29 30 Greatest Overweight (x) 4 | . . . . . . . 1 4 4 . 2 . . 4 . . 1 Average Overweight (x) . | . . . . . . . . . . . . . . . . . . Largest Inventory Capacity 4 | 4 4 4 4 4 4 4 4 4 4 4 4 4 4 4 4 4 4 Average Capacity 4 | 4 4 4 4 4 4 4 4 4 4 4 4 4 4 4 4 4 4 Most Carried 4 | 1 4 4 4 3 2 2 4 4 4 3 3 3 2 3 4 3 4 Average Carried 2 | . 1 4 3 1 1 1 2 2 2 2 2 2 2 2 2 2 1 Final Capacity 4 | 4 4 4 4 4 4 4 4 4 4 4 4 4 4 4 4 4 4 Final Carried 4 | . 4 4 3 1 2 1 2 3 4 3 2 2 2 2 3 2 1 Class Distribution -------------------- 43% | Hacker-Skirmisher 30% | Hacker-Mutant 16% | Hacker-Sprinter 3% | Scavenger-Assassin Dominant Class ---------------- Hacker-Mutant | -10/Materials Hacker-Mutant | -10/Mines Hacker-Skirmisher | -9/Materials Hacker-Skirmisher | -9/Mines Hacker-Mutant | -9/Exiles Scavenger-Assassin | -8/Mines Hacker-Skirmisher | -8/Materials Hacker-Skirmisher | -8/Garrison Hacker-Skirmisher | -8/Materials Hacker-Sprinter | -7/Factory Hacker-Sprinter | -7/Lower Caves Scavenger-Sprinter | -7/Lower Caves Hacker-Sprinter | -7/Data Miner Hacker-Sprinter | -6/Proximity Caves Hacker-Sprinter | -6/Factory Hacker-Sprinter | -6/Waste Hacker-Mutant | -6/Factory Resources | -11 -10 -10 -9 -9 -9 -8 -8 -8 -8 -7 -7 -7 -7 -6 -6 -6 -6 ----------- Run | Scr Mat Min Mat Min Exi Min Mat Gar Mat Fac Low Low Dat Pro Fac Was Fac Matter Collected 3356 | 238 71 40 172 130 . 87 637 492 273 71 258 46 . 46 109 . 686 Remotely . | . . . . . . . . . . . . . . . . . . Salvage Created 5252 | . 248 202 541 189 . 27 1395 1273 370 113 121 . . 72 55 . 646 Parts 297 | . 19 12 32 11 . 9 86 66 22 8 3 . . 4 1 . 24 Haulers Intercepted 9 | . . . 2 . . . 6 . 1 . . . . . . . . Recyclers Shooed 2 | . . . . . . . 1 . . . . . . . 1 . . Parts Field Recycled . | . . . . . . . . . . . . . . . . . . Retrieved Matter . | . . . . . . . . . . . . . . . . . . Parts Self-Destructed . | . . . . . . . . . . . . . . . . . . Prevented . | . . . . . . . . . . . . . . . . . . Kills | -11 -10 -10 -9 -9 -9 -8 -8 -8 -8 -7 -7 -7 -7 -6 -6 -6 -6 ------- Run | Scr Mat Min Mat Min Exi Min Mat Gar Mat Fac Low Low Dat Pro Fac Was Fac Combat Hostiles Destroyed 111 | . 8 5 9 6 . 6 20 28 5 3 2 . . 3 . . 16 Melee 1 | . . . . . . . 1 . . . . . . . . . . Guns 52 | . 7 5 3 2 . 2 11 10 4 3 2 . . 3 . . . Cannons 30 | . . . . 2 . 4 6 6 1 . . . . . . . 11 AOE 26 | . 1 . 6 1 . . 2 11 . . . . . . . . 5 Classes Destroyed 15 | . 3 . 4 2 . . 4 . 1 . . . . . . . 1 Worker 2 | . . . . . . . 1 . . . . . . . 1 . . Builder 5 | . . . . . . . 2 . 1 . . . . . 1 . 1 Tunneler 2 | . . . 1 . . . 1 . . . . . . . . . . Hauler 9 | . . . 2 . . . 6 . 1 . . . . . . . . Recycler 3 | . . . . . . . 2 . . . . . . . . . 1 Operator 5 | . . . 4 . . . . . 1 . . . . . . . . Watcher 8 | . 2 . . . . . 5 . 1 . . . . . . . . Swarmer 45 | . 6 1 4 2 . 6 5 16 . 2 . . . 3 . . . Grunt 28 | . 2 4 2 1 . . 5 8 1 . 1 . . . . . 4 Brawler 3 | . . . . 1 . . . . . . 1 . . . . . 1 Duelist 4 | . . . . . . . 2 . . . . . . . . . 2 Sentry 25 | . . . 3 . . . 8 4 3 1 . . . . . . 6 Demolisher 2 | . . . . 2 . . . . . . . . . . . . . Hunter 3 | . . . . . . . . . 1 . . . . . . . 2 Programmer 1 | . . . . . . . . . . . . . . . . . 1 Best Kill Streak 13 | . 3 2 4 4 . 3 5 13 2 3 2 . . 3 2 . 5 Combat Bots Only 13 | . 2 2 3 4 . 3 5 13 1 3 2 . . 3 . . 4 Max Kills in Single Turn 2 | . 2 2 2 1 . 1 2 2 1 2 1 . . 1 1 . 2 Gunslinging 1 | . . 1 . . . . . . . 1 . . . . . . . Exploded 2 | . 1 . 1 1 . . 1 2 . . . . . . . . 2 Melee 1 | . . . . . . . 1 . . . . . . . . . . Uniques/NPCs Destroyed . | . . . . . . . . . . . . . . . . . . Combat | -11 -10 -10 -9 -9 -9 -8 -8 -8 -8 -7 -7 -7 -7 -6 -6 -6 -6 -------- Run | Scr Mat Min Mat Min Exi Min Mat Gar Mat Fac Low Low Dat Pro Fac Was Fac Damage Taken 3781 | . 55 84 120 431 . 77 573 846 270 98 368 . . 208 . 22 629 Core 541 | . . 19 29 49 . 12 63 154 40 9 17 . . 25 . . 124 Absorbed by Shields . | . . . . . . . . . . . . . . . . . . Core Remaining (%) 82 | 100 . 92 . . . 77 . . 53 . . . . 92 . . . Volleys Fired 378 | . 19 14 18 22 . 15 60 46 28 8 13 . . 10 9 52 64 Largest 4 | . 2 2 3 3 . 2 4 4 3 3 3 . . 2 1 1 1 Hottest 185 | . 80 90 128 128 . 64 185 163 91 74 74 . . 46 23 23 53 Shots Fired 758 | . 38 28 54 41 . 21 177 127 64 24 39 . . 18 9 52 66 Gun 468 | . 38 28 36 18 . 6 93 67 40 24 39 . . 18 9 52 . Cannon 214 | . . . . 13 . 15 64 41 15 . . . . . . . 66 Launcher 76 | . . . 18 10 . . 20 19 9 . . . . . . . . Special . | . . . . . . . . . . . . . . . . . . Kinetic 434 | . 3 . . 13 . 21 83 51 55 24 39 . . 18 9 52 66 Thermal 32 | . . . . . . . 32 . . . . . . . . . . Explosive . | . . . . . . . . . . . . . . . . . . Electromagnetic 292 | . 35 28 54 28 . . 62 76 9 . . . . . . . . Robot Hit Streak 38 | . 6 25 28 11 . 30 38 27 24 7 23 . . 10 13 13 24 Robot Miss Streak 4 | . 4 2 1 1 . . 1 1 1 2 1 . . 1 1 1 3 Penetration Max . | . . . . . . . . . . . . . . . . . . Secondary Targets 4 | . 1 1 . . . . . . . 1 . . . 1 . . . Max Gunslinging Chain 1 | . 1 1 . . . . . . . 1 . . . 1 . . . Shots Hit Robots 614 | . 23 25 40 33 . 19 137 100 53 17 37 . . 16 8 48 58 Core Hits 253 | . 11 8 18 12 . 8 62 56 20 7 8 . . 6 2 4 31 Critical Hits 4 | . . . . 1 . . . 1 . . 1 . . . . . 1 Critical Kills 1 | . . . . 1 . . . . . . . . . . . . . Critical Parts Destroyed 3 | . . . . . . . . 1 . . 1 . . . . . 1 Melee Attacks 10 | . . . . . . . 10 . . . . . . . . . . Impact . | . . . . . . . . . . . . . . . . . . Slashing . | . . . . . . . . . . . . . . . . . . Piercing 10 | . . . . . . . 10 . . . . . . . . . . Sneak Attacks . | . . . . . . . . . . . . . . . . . . Combat Hostiles . | . . . . . . . . . . . . . . . . . . Follow-up Attacks . | . . . . . . . . . . . . . . . . . . Damage Inflicted 14082 | . 379 443 926 624 . 346 2711 2620 928 223 660 . . 251 117 701 3153 Guns 6041 | . 306 382 422 182 . 48 1258 1002 489 223 660 . . 251 117 701 . Cannons 3866 | . . . . 249 . 298 807 461 211 . . . . . . . 1840 Explosions 3901 | . 73 61 504 193 . . 372 1157 228 . . . . . . . 1313 Melee 270 | . . . . . . . 270 . . . . . . . . . . Ramming 4 | . . . . . . . 4 . . . . . . . . . . Kinetic 6659 | . 25 . . 249 . 346 966 581 700 223 660 . . 251 117 701 1840 Thermal 1848 | . 73 61 123 16 . . 480 417 . . . . . . . . 678 Explosive 527 | . . . . . . . . . . . . . . . . . 527 Electromagnetic 4774 | . 281 382 803 359 . . 991 1622 228 . . . . . . . 108 Impact . | . . . . . . . . . . . . . . . . . . Slashing . | . . . . . . . . . . . . . . . . . . Piercing 270 | . . . . . . . 270 . . . . . . . . . . Highest Corruption 13 | . . . 1 2 2 2 . . . . 2 1 1 1 . 9 13 Average Corruption 3 | . . . 1 1 2 2 . . . . 1 1 1 1 . 6 11 Corruption Purged 2 | . . . . . . . . . . . 1 . . 1 . . . Effects 74 | . . . 2 7 12 1 . . . . 1 1 . . . 6 44 Message Errors 22 | . . . 1 2 6 1 . . . . 1 1 . . . 2 8 Matter Fused 10 | . . . . . . . . . . . . . . . . 1 9 Heat Flow Errors 4 | . . . . . . . . . . . . . . . . . 4 Energy Discharges 11 | . . . 1 4 2 . . . . . . . . . . . 4 Data Loss (minor) 11 | . . . . 1 4 . . . . . . . . . . 1 5 Data Loss (major) 1 | . . . . . . . . . . . . . . . . . 1 Misfires 2 | . . . . . . . . . . . . . . . . . 2 Alerts 1 | . . . . . . . . . . . . . . . . . 1 Misdirections 7 | . . . . . . . . . . . . . . . . . 7 Targeting Errors 5 | . . . . . . . . . . . . . . . . 2 3 Overload Shots . | . . . . . . . . . . . . . . . . . . Overflow Damage 179 | . . 19 37 4 . 5 18 41 12 . . . . . . . 43 Projectiles 48 | . . . . 4 . 5 5 . 12 . . . . . . . 22 Explosions 127 | . . 19 37 . . . 9 41 . . . . . . . . 21 Melee 4 | . . . . . . . 4 . . . . . . . . . . Knockbacks 19 | . . . . 2 . 1 6 5 1 . . . . . . . 4 Impact . | . . . . . . . . . . . . . . . . . . Kinetic 19 | . . . . 2 . 1 6 5 1 . . . . . . . 4 Secondary . | . . . . . . . . . . . . . . . . . . Self-Inflicted Damage 160 | . . 28 5 . . . 15 112 . . . . . . . . . Shots 12 | . . 2 1 . . . 3 6 . . . . . . . . . Rammed . | . . . . . . . . . . . . . . . . . . Targets Rammed 1 | . . . . . . . 1 . . . . . . . . . . Kicked . | . . . . . . . . . . . . . . . . . . Crushed 1 | . . . . . . . 1 . . . . . . . . . . Highest Temperature 497 | . 210 252 306 437 . 32 107 497 . . . . . . . . 258 Average Temperature 95 | . 67 106 89 195 . 14 27 169 . . . . . . . . 117 Received Heat Transfer 1267 | . 12 45 39 40 . . 297 333 99 18 138 . . . . . 246 Effects 10 | . . . . 4 . . . 6 . . . . . . . . . Shutdowns 5 | . . . . 3 . . . 2 . . . . . . . . . Energy Bleed 1 | . . . . 1 . . . . . . . . . . . . . Interference 2 | . . . . . . . . 2 . . . . . . . . . Damage (major) 2 | . . . . . . . . 2 . . . . . . . . . Siege Activations . | . . . . . . . . . . . . . . . . . . Robots Corrupted 7 | . . . 1 1 . . . 5 . . . . . . . . . Combat Hostiles 2 | . . . . 1 . . . 1 . . . . . . . . . Parts Fried 26 | . 3 . 9 2 . . 6 6 . . . . . . . . . Impact Corruptions . | . . . . . . . . . . . . . . . . . . Robots Melted . | . . . . . . . . . . . . . . . . . . Combat Hostiles . | . . . . . . . . . . . . . . . . . . Parts Melted . | . . . . . . . . . . . . . . . . . . Heat Transferred 2188 | . 100 100 200 50 . . 888 500 . . . . . . . . 350 Parts Sabotaged 8 | . . . . . . . . 8 . . . . . . . . . Parts Stolen . | . . . . . . . . . . . . . . . . . . Parts Stripped . | . . . . . . . . . . . . . . . . . . Power Chain Reactions 19 | . 2 2 6 1 . . 1 7 . . . . . . . . . Missiles Intercepted . | . . . . . . . . . . . . . . . . . . Alert | -11 -10 -10 -9 -9 -9 -8 -8 -8 -8 -7 -7 -7 -7 -6 -6 -6 -6 ------- Run | Scr Mat Min Mat Min Exi Min Mat Gar Mat Fac Low Low Dat Pro Fac Was Fac Peak Influence 1197 | . 115 114 171 74 . 141 328 1197 645 200 . . . . 121 58 555 Initial 427 | . . 4 13 26 . . . . 427 14 . . . . 28 28 15 Average 181 | . 36 52 52 31 . 75 104 778 434 38 . . . . 45 38 179 Maximum Alert Level 4 | . . . . . . . 1 4 2 1 . . . . . . 2 Low Security (%) 78 | 100 100 100 100 100 . 100 88 11 21 92 . . . . 100 100 61 Level 1 6 | . . . . . . . 11 4 4 7 . . . . . . 27 Level 2 6 | . . . . . . . . 7 74 . . . . . . . 11 Level 3 9 | . . . . . . . . 74 . . . . . . . . . Level 4 . | . . . . . . . . 1 . . . . . . . . . Level 5 . | . . . . . . . . . . . . . . . . . . High Security . | . . . . . . . . . . . . . . . . . . Max Security . | . . . . . . . . . . . . . . . . . . Squads Dispatched 14 | . 1 1 1 . . . . . 1 2 . . . . . . 8 Investigation 4 | . 1 1 . . . . . . . 1 . . . . . . 1 Extermination 1 | . . . . . . . . . . . . . . . . . 1 Reinforcement 6 | . . . 1 . . . . . 1 1 . . . . . . 3 Assault . | . . . . . . . . . . . . . . . . . . Garrison 3 | . . . . . . . . . . . . . . . . . 3 Intercept . | . . . . . . . . . . . . . . . . . . Construction Impeded 2 | . . . . . . . . . . . . . . . . . 2 Haulers Reinforced . | . . . . . . . . . . . . . . . . . . Stealth | -11 -10 -10 -9 -9 -9 -8 -8 -8 -8 -7 -7 -7 -7 -6 -6 -6 -6 --------- Run | Scr Mat Min Mat Min Exi Min Mat Gar Mat Fac Low Low Dat Pro Fac Was Fac Distress Signals 2 | . 1 . . . . . 1 . . . . . . . . . . Communications Jammed . | . . . . . . . . . . . . . . . . . . Distress Signals . | . . . . . . . . . . . . . . . . . . Times Spotted 177 | . 13 6 20 11 . 6 30 38 9 6 6 . . 3 4 6 19 Peak Tracking Total 10 | . 2 2 4 10 . 3 3 9 2 3 4 . . 3 4 6 4 Tactical Retreats 16 | . . 1 . 1 . . 1 7 2 . 2 . . . 1 . 1 Traps | -11 -10 -10 -9 -9 -9 -8 -8 -8 -8 -7 -7 -7 -7 -6 -6 -6 -6 ------- Run | Scr Mat Min Mat Min Exi Min Mat Gar Mat Fac Low Low Dat Pro Fac Was Fac Traps Triggered 9 | . . . 3 . . . 2 1 1 1 . . . . 1 . . Indirectly . | . . . . . . . . . . . . . . . . . . Trap Hack Attempts . | . . . . . . . . . . . . . . . . . . Triggered . | . . . . . . . . . . . . . . . . . . Disarmed . | . . . . . . . . . . . . . . . . . . Reprogrammed 2 | . 2 . . . . . . . . . . . . . . . . Reused . | . . . . . . . . . . . . . . . . . . Traps Reconfigurated 24 | . . . . . . . 9 15 . . . . . . . . . Traps Extracted . | . . . . . . . . . . . . . . . . . . Installed . | . . . . . . . . . . . . . . . . . . Triggered 1 | . . . . . . . . . . . . . . 1 . . . Machines | -11 -10 -10 -9 -9 -9 -8 -8 -8 -8 -7 -7 -7 -7 -6 -6 -6 -6 ---------- Run | Scr Mat Min Mat Min Exi Min Mat Gar Mat Fac Low Low Dat Pro Fac Was Fac Machines Disabled 29 | . 2 . 4 1 . . 1 4 2 . . . . . . . 15 Max in Single Turn 5 | . 1 . 1 1 . . 1 2 2 . . . . . . . 5 Garrison Relay 2 | . . . . . . . . 2 . . . . . . . . . Phase Generator 1 | . . . . . . . . 1 . . . . . . . . . Machines Sabotaged . | . . . . . . . . . . . . . . . . . . Garrisons Compromised . | . . . . . . . . . . . . . . . . . . Overloaded Fab Kills . | . . . . . . . . . . . . . . . . . . Fab Network Shutdowns . | . . . . . . . . . . . . . . . . . . Hacking | -11 -10 -10 -9 -9 -9 -8 -8 -8 -8 -7 -7 -7 -7 -6 -6 -6 -6 --------- Run | Scr Mat Min Mat Min Exi Min Mat Gar Mat Fac Low Low Dat Pro Fac Was Fac Machines Accessed 57 | . 6 2 5 . 3 1 13 . 4 5 . 2 4 . 1 . 11 Terminals 36 | . 5 . 5 . . 1 11 . 3 3 . . . . 1 . 7 Fabricators 3 | . . . . . . . . . . . . . . . . . 3 Repair Stations 3 | . . . . . . . 1 . . 1 . . . . . . 1 Recycling Units 2 | . 1 . . . . . . . . 1 . . . . . . . Scanalyzers . | . . . . . . . . . . . . . . . . . . Garrison Access 2 | . . . . . . . 1 . 1 . . . . . . . . Total Hacks 227 | . 24 2 13 . 33 5 57 . 10 17 . 6 29 . 3 . 28 Successful 199 | . 19 2 7 . 33 3 52 . 9 15 . 6 29 . 2 . 22 Failed 28 | . 5 . 6 . . 2 5 . 1 2 . . . . 1 . 6 Catastrophic 1 | . . . . . . . . . . 1 . . . . . . . Database Lockouts . | . . . . . . . . . . . . . . . . . . Manual 97 | . 10 1 11 . 3 1 36 . 7 6 . 1 . . 3 . 18 Terminals 128 | . 21 . 13 . . 5 51 . 9 7 . . . . 3 . 19 Fabricators 7 | . . . . . . . . . . . . . . . . . 7 Repair Stations 14 | . . . . . . . 4 . . 8 . . . . . . 2 Recycling Units 5 | . 3 . . . . . . . . 2 . . . . . . . Scanalyzers . | . . . . . . . . . . . . . . . . . . Garrison Access 3 | . . . . . . . 2 . 1 . . . . . . . . Terminal Hacks 122 | . 11 2 2 . 33 3 26 . 4 1 . 6 29 . . . 5 Record 55 | . 4 . . . 32 . . . 1 1 . 5 11 . . . 1 Part Schematic 9 | . . . . . . . 1 . . . . . 7 . . . 1 Robot Schematic 8 | . . . . . . . . . . . . . 8 . . . . Prototype ID Bank 4 | . . . . . . . 1 . . . . . 3 . . . . Open Door 3 | . . 2 . . . . . . . . . 1 . . . . . Branch Access Points 3 | . . . 1 . . 1 1 . . . . . . . . . . Emergency Access Points 2 | . 1 . . . . . 1 . . . . . . . . . . Machine Index 2 | . . . 1 . . . 1 . . . . . . . . . . Terminal Index 1 | . . . . . . . 1 . . . . . . . . . . Garrison Index 1 | . . . . . . . . . . . . . . . . . 1 Alert Level 5 | . . . . . . . 2 . 1 . . . . . . . 2 Unreport Threat 3 | . . . . . . . 1 . 2 . . . . . . . . Locate Traps 6 | . 1 . . . . . 5 . . . . . . . . . . Reprogram Traps 2 | . 2 . . . . . . . . . . . . . . . . Dispatch Records 3 | . . . . . . 1 2 . . . . . . . . . . Maintenance Status 2 | . 1 . . . . . 1 . . . . . . . . . . Security Status 1 | . . . . . . . 1 . . . . . . . . . . Patrol Status 2 | . . . . . . . 2 . . . . . . . . . . Transport Status 1 | . . . . . . . 1 . . . . . . . . . . Investigation Status 1 | . . . . . . 1 . . . . . . . . . . . Hauler Manifests 4 | . 1 . . . . . 3 . . . . . . . . . . Zone Layout 3 | . 1 . . . . . 2 . . . . . . . . . . EX-Prototype ID Bank 1 | . . . . . 1 . . . . . . . . . . . . Fabricator Hacks 3 | . . . . . . . . . . . . . . . . . 3 Load Schematic 2 | . . . . . . . . . . . . . . . . . 2 Build 1 | . . . . . . . . . . . . . . . . . 1 Repair Station Hacks 14 | . . . . . . . 4 . . 8 . . . . . . 2 Scan Component 7 | . . . . . . . 2 . . 4 . . . . . . 1 Repair 7 | . . . . . . . 2 . . 4 . . . . . . 1 Recycling Unit Hacks 5 | . 3 . . . . . . . . 2 . . . . . . . Recycle Component 2 | . 2 . . . . . . . . . . . . . . . . Process 1 | . 1 . . . . . . . . . . . . . . . . Report Inventory 1 | . . . . . . . . . . 1 . . . . . . . Retrieve Matter 1 | . . . . . . . . . . 1 . . . . . . . Scanalyzer . | . . . . . . . . . . . . . . . . . . Garrison Access Hacks 3 | . . . . . . . 2 . 1 . . . . . . . . Unlock Access 1 | . . . . . . . 1 . . . . . . . . . . Coupler Status 2 | . . . . . . . 1 . 1 . . . . . . . . Unauthorized Hacks 52 | . 5 . 5 . . . 20 . 4 4 . . . . 2 . 12 Terminals 51 | . 5 . 5 . . . 20 . 4 4 . . . . 2 . 11 Track 13 | . 1 . 2 . . . 6 . 1 2 . . . . 1 . . Assimilate 9 | . 1 . 2 . . . 4 . . . . . . . . . 2 Botnet 26 | . 3 . 1 . . . 10 . 3 2 . . . . 1 . 6 Detonate 3 | . . . . . . . . . . . . . . . . . 3 Fabricators 1 | . . . . . . . . . . . . . . . . . 1 Download 1 | . . . . . . . . . . . . . . . . . 1 Repair Stations . | . . . . . . . . . . . . . . . . . . Recycling Units . | . . . . . . . . . . . . . . . . . . Scanalyzers . | . . . . . . . . . . . . . . . . . . Garrison Access . | . . . . . . . . . . . . . . . . . . Data Cores Recovered . | . . . . . . . . . . . . . . . . . . Used . | . . . . . . . . . . . . . . . . . . Hacking Detections 40 | . 5 . 5 . . 1 11 . 2 5 . . . . 1 . 10 Full Trace Events 1 | . 1 . . . . . . . . . . . . . . . . Feedback Events . | . . . . . . . . . . . . . . . . . . Feedback Blocked . | . . . . . . . . . . . . . . . . . . Robot Schematics Acquired 8 | . . . . . . . . . . . . . 8 . . . . Robots Built . | . . . . . . . . . . . . . . . . . . Matter . | . . . . . . . . . . . . . . . . . . Time . | . . . . . . . . . . . . . . . . . . Total Robot Build Rating . | . . . . . . . . . . . . . . . . . . Part Schematics Acquired 10 | . . . . . . . 1 . . . . . 7 . . . 2 Parts Built . | . . . . . . . . . . . . . . . . . . Matter 168 | . . . . . . . . . . . . . . . . . 168 Time 84 | . . . . . . . . . . . . . . . . . 84 Total Part Build Rating . | . . . . . . . . . . . . . . . . . . Parts Repaired 7 | . . . . . . . 2 . . 4 . . . . . . 1 Time 254 | . . . . . . . 70 . . 146 . . . . . . 38 Parts Recycled 2 | . 2 . . . . . . . . . . . . . . . . Recycled Matter 87 | . 87 . . . . . . . . . . . . . . . . Retrieved Matter . | . . . . . . . . . . . . . . . . . . Retrieved Components . | . . . . . . . . . . . . . . . . . . Parts Scanalyzed . | . . . . . . . . . . . . . . . . . . Part Schematics Acquired . | . . . . . . . . . . . . . . . . . . Parts Damaged . | . . . . . . . . . . . . . . . . . . Bothacking | -11 -10 -10 -9 -9 -9 -8 -8 -8 -8 -7 -7 -7 -7 -6 -6 -6 -6 ------------ Run | Scr Mat Min Mat Min Exi Min Mat Gar Mat Fac Low Low Dat Pro Fac Was Fac Used RIF Installer . | . . . . . . . . . . . . . . . . . . Robots Hacked . | . . . . . . . . . . . . . . . . . . Non-combat . | . . . . . . . . . . . . . . . . . . Combat . | . . . . . . . . . . . . . . . . . . Robot Hacks Applied . | . . . . . . . . . . . . . . . . . . Relay Couplers Released 10 | . . . . . . . . 10 . . . . . . . . . Machine Destruction 10 | . . . . . . . . 10 . . . . . . . . . Robots Rewired 2 | . . . . . . . 1 . . . . . . . 1 . . Allies Hacked . | . . . . . . . . . . . . . . . . . . Hacks Repelled . | . . . . . . . . . . . . . . . . . . Allies | -11 -10 -10 -9 -9 -9 -8 -8 -8 -8 -7 -7 -7 -7 -6 -6 -6 -6 -------- Run | Scr Mat Min Mat Min Exi Min Mat Gar Mat Fac Low Low Dat Pro Fac Was Fac Total Allies 6 | . . . . . . . 2 . . . . . . 1 1 1 1 Largest Group 1 | . . . . . . . 1 . . . . . . 1 1 1 1 Highest-Rated Group 94 | . . . . . . . 15 . . . . . . 94 29 31 26 Highest-Rated Ally 94 | . . . . . . . 15 . . . . . . 94 29 31 26 Total Orders 3 | . . . . . . . 1 . . . . . . . 1 . 1 STAY 1 | . . . . . . . . . . . . . . . . . 1 ROAM 1 | . . . . . . . . . . . . . . . 1 . . FOLLOW 1 | . . . . . . . 1 . . . . . . . . . . Ally Attacks 15 | . . . . . . . 5 . . . . . . 1 . 9 . Total Damage 283 | . . . . . . . 137 . . . . . . . . 146 . Kills 1 | . . . . . . . 1 . . . . . . . . . . Allies Corrupted . | . . . . . . . . . . . . . . . . . . Allies Melted . | . . . . . . . . . . . . . . . . . . Intel | -11 -10 -10 -9 -9 -9 -8 -8 -8 -8 -7 -7 -7 -7 -6 -6 -6 -6 ------- Run | Scr Mat Min Mat Min Exi Min Mat Gar Mat Fac Low Low Dat Pro Fac Was Fac Robot Analysis Total . | . . . . . . . . . . . . . . . . . . Derelict Logs Recovered 5 | . . . . 1 . . . . . . 1 1 . 2 . . . Drone Launches . | . . . . . . . . . . . . . . . . . . Drone Recoveries . | . . . . . . . . . . . . . . . . . . Exploration | -11 -10 -10 -9 -9 -9 -8 -8 -8 -8 -7 -7 -7 -7 -6 -6 -6 -6 ------------- Run | Scr Mat Min Mat Min Exi Min Mat Gar Mat Fac Low Low Dat Pro Fac Was Fac Turns Passed 11626 | 85 978 624 1072 788 853 410 2006 1201 536 769 594 157 25 319 159 175 875 Spaces Moved 9607 | 48 567 339 603 434 533 225 1039 680 337 1076 831 568 80 659 340 283 965 Core 212 | 4 . . . . . . . 8 . . 189 . . 11 . . . Treads 4581 | 44 567 339 603 434 533 225 1039 672 125 . . . . . . . . Legs . | . . . . . . . . . . . . . . . . . . Wheels . | . . . . . . . . . . . . . . . . . . Hover . | . . . . . . . . . . . . . . . . . . Flight 4814 | . . . . . . . . . 212 1076 642 568 80 648 340 283 965 Fastest Speed 24 | 50 160 160 160 160 160 160 145 145 102 26 26 26 26 26 24 24 25 Average Speed 95 | 150 160 160 160 160 160 160 151 147 120 26 49 26 26 31 24 24 54 Slowest Speed 315 | 160 160 160 160 160 160 160 180 250 315 26 150 26 26 250 29 27 98 Overloaded Moves . | . . . . . . . . . . . . . . . . . . Propulsion Burnouts . | . . . . . . . . . . . . . . . . . . Robots Hopped 2 | . . . . . . . . . . . . . . . 2 . . Cave-ins Triggered . | . . . . . . . . . . . . . . . . . . Exploration Rate (%) 61 | 3 84 77 44 80 91 62 91 94 23 32 91 64 71 72 11 90 26 Regions Visited 17 Branch Regions 8 Pre-discovered Areas 3 | . . . . . 1 . . . . . 1 . 1 . . . . Known Exits Taken 14 | 1 1 1 1 1 1 1 1 . 1 1 1 1 1 1 . . . Unknown Exits Taken . | . . . . . . . . . . . . . . . . . . Scrap Searched 7 | . . . . . . . . . . . 3 3 . 1 . . . Spaces Dug 2 | . . . . . . . . . . . . . . . . . 2 Terrain Destroyed 295 | . 4 10 23 . . 1 13 90 1 . . . . . . . 153 Melee . | . . . . . . . . . . . . . . . . . . Projectile 14 | . . . . . . 1 10 . 1 . . . . . . . 2 AOE 281 | . 4 10 23 . . . 3 90 . . . . . . . . 151 Terrain Rammed . | . . . . . . . . . . . . . . . . . . Walls Destroyed . | . . . . . . . . . . . . . . . . . . Machines Disabled . | . . . . . . . . . . . . . . . . . . Actions | -11 -10 -10 -9 -9 -9 -8 -8 -8 -8 -7 -7 -7 -7 -6 -6 -6 -6 --------- Run | Scr Mat Min Mat Min Exi Min Mat Gar Mat Fac Low Low Dat Pro Fac Was Fac Total 11454 | 61 601 393 670 491 533 256 1324 782 414 1544 981 576 83 754 403 335 1253 Wait 1139 | . . 30 30 12 . 10 133 28 23 428 128 7 4 80 43 . 183 Move 9586 | 47 566 338 602 433 532 224 1039 677 336 1075 830 567 79 658 336 282 965 Hop 2 | . . . . . . . . . . . . . . . 2 . . Pick Up 112 | 7 10 2 7 3 1 2 26 12 11 11 3 1 . 1 5 . 10 Fast Attach 5 | . . . . . . . . 5 . . . . . . . . . Attach 79 | 7 2 . 5 5 . 2 13 7 7 7 4 1 . 1 4 1 13 Detach 9 | . . . . 1 . . . . . . . . . . 1 . 7 Swap 49 | . 1 5 4 . . 1 20 1 3 9 . . . . 1 . 4 Drop 57 | . 3 4 4 1 . 2 16 4 6 6 3 . . . 1 . 7 Fire 378 | . 19 14 18 22 . 15 60 46 28 8 13 . . 10 9 52 64 Melee 10 | . . . . . . . 10 . . . . . . . . . . Ram . | . . . . . . . . . . . . . . . . . . Kick . | . . . . . . . . . . . . . . . . . . Crush 1 | . . . . . . . 1 . . . . . . . . . . Escape Stasis . | . . . . . . . . . . . . . . . . . . Rewire 27 | . . . . 14 . . 6 2 . . . . . 4 1 . . Trap . | . . . . . . . . . . . . . . . . . . Miscellaneous . | . . . . . . . . . . . . . . . . . . Route ------- -11/Scrapyard -10/Materials (discovered 5 exits: *Mat x3 / *Min x2) -10/Mines (discovered 2 exits: *Mat x2) -9/Materials (discovered 5 exits: *Mat / *Min x2 / *Sto x2) -9/Mines (discovered 3 exits: *Mat x2 / *Exi) -9/Exiles -8/Mines (discovered 2 exits: *Mat x2) -8/Materials (discovered 2 exits: *Fac / Gar) -8/Garrison (discovered 3 exits: *Mat x3) -8/Materials -7/Factory (discovered 4 exits: *Fac x2 / *Low x2) -7/Lower Caves -7/Lower Caves (discovered 2 exits: *Fac / *Dat) -7/Data Miner -6/Proximity Caves -6/Factory -6/Waste -6/Factory (discovered 1 exit: *Fac) History --------- Turn | Location | Event 3 | -11/Scrapyard | Identified exit to Materials 3 | -11/Scrapyard | Discovered exit to Materials (range 15) 86 | -11/Scrapyard | Entered Materials 86 | -10/Materials | Evolved 1 slot: Power x1 310 | -10/Materials | Build established: Hacker-Mutant 402 | -10/Materials | Identified exit to Mines 402 | -10/Materials | Discovered exit to Mines (range 8) 676 | -10/Materials | Identified exit to Materials 676 | -10/Materials | Discovered exit to Materials (range 3) 713 | -10/Materials | Discovered exit to Mines (range 16) 809 | -10/Materials | Discovered exit to Materials (range 3) 1029 | -10/Materials | Discovered exit to Materials (range 15) 1064 | -10/Materials | Entered Mines 1129 | -10/Mines | Met a Derelict shopkeep closing up shop 1267 | -10/Mines | Discovered exit to Materials (range 13) 1405 | -10/Mines | Found the Drone Emporium 1505 | -10/Mines | Discovered exit to Materials (range 10) 1646 | -10/Mines | Found a damaged Exp. Sensor Array with a note attached 1650 | -10/Mines | Found Prototype Device 1651 | -10/Mines | Identified Exp. Sensor Array 1688 | -10/Mines | Entered Materials 1688 | -9/Materials | Evolved 2 slots: Utility x1, Weapon x1 1993 | -9/Materials | Build established: Hacker-Skirmisher 2233 | -9/Materials | Identified exit to Materials 2233 | -9/Materials | Discovered exit to Materials (range 8) 2677 | -9/Materials | Identified exit to Storage 2677 | -9/Materials | Discovered exit to Storage (range 16) 2687 | -9/Materials | Identified exit to Mines 2760 | -9/Materials | Entered Mines 2767 | -9/Mines | Received a Rocket Launcher from a helpful Derelict 2777 | -9/Mines | Discovered exit to Materials (range 14) 2869 | -9/Mines | Discovered exit to Materials (range 12) 2892 | -9/Mines | Assembled infested the area 3169 | -9/Mines | A weapon hastily lodged in a ceiling crevice suddenly fell to the ground 3414 | -9/Mines | Learned location of 1 exit from Materials 3476 | -9/Mines | Lost 3 parts (1p2w) 3513 | -9/Mines | Identified exit to Exiles 3513 | -9/Mines | Discovered exit to Exiles (range 14) 3548 | -9/Mines | Entered Exiles 3588 | -9/Exiles | Met 8R-AWN 3616 | -9/Exiles | Met EX-HEX 3675 | -9/Exiles | Met EX-DEC 3708 | -9/Exiles | Learned location of Zion (-6) 3735 | -9/Exiles | Build established: Hacker-Mutant 3763 | -9/Exiles | Identified exit to Mines 3763 | -9/Exiles | Discovered exit to Mines (range 11) 3852 | -9/Exiles | Met EX-BIN 3881 | -9/Exiles | Aligned with FarCom system 3883 | -9/Exiles | Given EX-Vault access code 3960 | -9/Exiles | Opened EX-Vault 3971 | -9/Exiles | Found Trap Reconfigurator 4007 | -9/Exiles | Warned to stay clear of 0b10 Research branches 4147 | -9/Exiles | Visited The Gauntlet 4401 | -9/Exiles | Left Exiles lab with Trap Reconfigurator 4401 | -9/Exiles | Entered Mines 4692 | -8/Mines | Discovered exit to Materials (range 5) 4747 | -8/Mines | Discovered exit to Materials (range 9) 4777 | -8/Mines | Build established: Scavenger-Assassin 4811 | -8/Mines | Entered Materials 4811 | -8/Materials | Evolved 2 slots: Utility x1, Weapon x1 4812 | -8/Materials | Identified exit to Factory 5350 | -8/Materials | Build established: Hacker-Skirmisher 6650 | -8/Materials | Repaired Imp. Weapon Shielding 6686 | -8/Materials | Repaired EMP Blaster 6817 | -8/Materials | Identified exit to Garrison 6817 | -8/Materials | Entered Garrison 6922 | -8/Garrison | Triggered checkpoint 6922 | -8/Garrison | Triggered checkpoint 6994 | -8/Garrison | Destroyed 13 combat bots 7051 | -8/Garrison | Phase Generator disabled 7051 | -8/Garrison | Identified exit to Materials 7051 | -8/Garrison | Discovered exit to Materials (range 15) 7206 | -8/Garrison | Triggered checkpoint 7294 | -8/Garrison | Triggered checkpoint 7413 | -8/Garrison | Triggered checkpoint 7447 | -8/Garrison | Lost 3 parts (1p1n1w) 7540 | -8/Garrison | Discovered exit to Materials (range 9) 7618 | -8/Garrison | Attempted to access garrison exit controls, blocked by remote lockdown 7901 | -8/Garrison | Attempted to access garrison exit controls, blocked by remote lockdown 8011 | -8/Garrison | Discovered exit to Materials (range 5) 8018 | -8/Garrison | Entered Materials 8246 | -8/Materials | Lost 3 parts (1n2w) 8406 | -8/Materials | Discovered exit to Factory (range 9) 8554 | -8/Materials | Entered Factory 8554 | -7/Factory | Evolved 2 slots: Propulsion x2 8807 | -7/Factory | Identified exit to Lower Caves 8807 | -7/Factory | Discovered exit to Lower Caves (range 7) 8822 | -7/Factory | Identified exit to Factory 8822 | -7/Factory | Discovered exit to Factory (range 4) 8859 | -7/Factory | Build established: Hacker-Sprinter 8957 | -7/Factory | Repaired Hvy. Assault Rifle 8991 | -7/Factory | Repaired Hvy. Assault Rifle 9031 | -7/Factory | Repaired Lgt. Nuclear Core 9156 | -7/Factory | Repaired Gauss Rifle 9226 | -7/Factory | Found Prototype Launcher 9227 | -7/Factory | Identified Rocket Array 9230 | -7/Factory | Discovered exit to Factory (range 4) 9307 | -7/Factory | Discovered exit to Lower Caves (range 8) 9323 | -7/Factory | Entered Lower Caves 9370 | -7/Lower Caves | Spotted B-75 Beast 9489 | -7/Lower Caves | Learned location of Extension (-6) 9609 | -7/Lower Caves | Lost 3 parts (1p1n1u) 9624 | -7/Lower Caves | Encountered a Warlord checkpoint 9892 | -7/Lower Caves | Identified exit to Lower Caves 9892 | -7/Lower Caves | Discovered exit to Lower Caves (range 15) 9917 | -7/Lower Caves | Entered another Lower Caves area 9923 | -7/Lower Caves | Discovered exit to Factory (range 15) 9982 | -7/Lower Caves | Learned Armory security intel 9982 | -7/Lower Caves | Learned Extension garrison access intel 10037 | -7/Lower Caves | Learned Factory interactive machine intel 10040 | -7/Lower Caves | Identified exit to Data Miner 10040 | -7/Lower Caves | Discovered exit to Data Miner (range 5) 10074 | -7/Lower Caves | Entered Data Miner 10078 | -7/Data Miner | Identified exit to Proximity Caves 10078 | -7/Data Miner | Discovered exit to Proximity Caves (range 6) 10083 | -7/Data Miner | Met Data Miner 10091 | -7/Data Miner | Learned location of Section 7 (-2) 10091 | -7/Data Miner | Acquired the access code to Warlord's prototype stash 10094 | -7/Data Miner | Received God Mode back door access code from Data Miner 10099 | -7/Data Miner | Entered Proximity Caves 10116 | -6/Proximity Caves | Learned Factory trap positions 10151 | -6/Proximity Caves | Spotted B-75 Beast 10153 | -6/Proximity Caves | Escorted by Enhanced Grunt 10236 | -6/Proximity Caves | Lost 4 parts (2p1u1w) 10252 | -6/Proximity Caves | Learned Factory emergency access door positions 10402 | -6/Proximity Caves | Discovered exit to Factory (range 14) 10418 | -6/Proximity Caves | Entered Factory 10418 | -6/Factory | Evolved 2 slots: Power x1, Propulsion x1 10419 | -6/Factory | Loaded intel: 82 trap records 10421 | -6/Factory | Loaded intel: 46 interactive machine locations 10577 | -6/Factory | Manually triggered Chute Trap 10577 | -6/Factory | Sucked down chute 10577 | -6/Factory | Entered Waste 10578 | -6/Waste | Met a frightened Derelict 10580 | -6/Waste | Spotted C-40 Crusher 10586 | -6/Waste | Spotted C-40 Crusher 10592 | -6/Waste | EMP discharged 10627 | -6/Waste | Spotted C-40 Crusher 10636 | -6/Waste | Spotted C-40 Crusher 10692 | -6/Waste | EMP discharged 10693 | -6/Waste | Spotted C-40 Crusher 10704 | -6/Waste | Spotted C-40 Crusher 10731 | -6/Waste | Crushed by Compactor (1 part destroyed, 2 dropped) 10749 | -6/Waste | Identified exit to Factory 10749 | -6/Waste | Discovered exit to Factory (range 13) 10752 | -6/Waste | Entered Factory 10836 | -6/Factory | Identified exit to Factory 10836 | -6/Factory | Discovered exit to Factory (range 6) 10876 | -6/Factory | Repaired Cesium-ion Thruster 10993 | -6/Factory | System corruption reached 10% 11017 | -6/Factory | Incoming investigation squad redirected 11326 | -6/Factory | Build established: Hacker-Mutant 11627 | -6/Factory | Self-destructed Last Messages --------------- 11619_ Fabricator disabled. 11619_ P-60 Hacker destroyed. 11620_ K-01 Serf collects debris. 11620_ R-10 Processor collects Shock Rifle. 11621_ R-10 Processor collects Imp. Heat Sink. 11621_ K-01 Serf collects debris. 11622_ System corrupted: Substantial component data lost. 11622_ R-10 Processor collects Lgt. Angular Momentum Engine. 11623_ K-01 Serf collects debris. 11624_ K-01 Serf cleans the Terminal. 11625_ K-01 Serf collects debris. 11625_ R-10 Processor collects Shock Rifle. 11625_ U-05 Engineer lays Concrete. 11625_ System corrupted: Magnetic Acceleration Cannon targeting data glitched. 11625_ Y-54 Guardian destroyed. 11626_ U-05 Engineer lays Concrete. 11626_ K-01 Serf collects debris. 11627_ U-05 Engineer lays Concrete. [Achievement: Achiever] Map ----- +----------------------------------------------------+ | ?????????????????????????????????????####### | | ?????????????????????????????????????# + | | ?????????????????????????????????????# # | | ?????????????????????????????????????# """ # | | ?????????????????????????????????????# """ # | | ?????????????????????????????????????# """ ####### | | ?????????????????????????????????????# ####### | | ?????????????????????????????????????# """ # | | ?????????????????????????????????????# """ + | | ??????????????????????? ?????????# """ # | | ??????????????????????# #????????# # ##### | | ??????????????????????# #????????# ] [ # # | | ??????????????????????# #????????# # # "S | | ??????????????????????# ################ # """ | | ??????????????????????# # #?# # "" | | ?????????????##???????# # #?# # | | ????????????? ?????# # #?# # """ | | ???????????? ????# # #?# # | | ???????????? ???# # #?# # """ | | ???????????? #### # #?# # | | ??????????? ^ # ### # """ | | ??????????? # / + | | ??????????? ""# ### # | | ?????????? u F"# #?# ##### | | ?????????? R "# #?# ???? | | ?????????? k @ "# #?# ??? | | ?????????? ###/##########?# ?? | | ?????????? #???????# ?? | | ??????????? RR % k #???????#+##+#? | | ??????????? #?????????????? | | ???????????? #?????????????? | | ????????????% #?????????????? | | ???????????? ;;;;######### #?????????????? | | ?????????????; ????????# ########??????? | | ?????????????#######?????????# +??????? | | ?????????????? ???????????# #??????? | | ?????????????? ????????????#""k #??????? | | ?????????????????????????????#"T " " " + "??? | | ?????????????????????????????#"" " " " # "??? | | ???????????g?????????????????# " " " #??????? | | ?????????????????????????????# " " " #??????? | | ?????????????????????????????# " " " #??????? | | ?????????????????????????????# " " " ?????????? | | ?????????????????????????????# " " "??????????? | | ?????????????????????????????# " " "??????????? | | ?????????????????????????????# " "????????????? | | ?????????????????????????????# ??????????????? | | ?????????????????????????????# ??????????????? | | ????????????????????????????? ??????????????? | | ????????????????????????????? ??????????????? | +----------------------------------------------------+ Best States ------------- Heat Dissipation 97 Energy Generation 44 Energy Capacity 445 Matter Stores 300 Matter Capacity 300 Sight Range 16 Robot Scan Range 30 Terrain Scan Range 16 Terrain Scan Density 60 Additional Mass Support 9 Armor Coverage 150 Resistance: KI 35 Resistance: TH 35 Resistance: EX 35 Resistance: EM 35 Resistance: I 35 Resistance: S 35 Resistance: P 35 Weapon Shielding 66 Evasion (%) 65 Recoil Reduction 2 Offensive Hacking 40 Item Schematics ----------------- EM Pulse Cannon | -8/Materials | Hacked Combat Drone Bay | -7/Data Miner | Free Lgt. Regenerative Plating | -7/Data Miner | Free Cmb. Gravmag System | -7/Data Miner | Free Triangulator | -7/Data Miner | Free Exp. ECM Suite | -7/Data Miner | Free Cloaking Device | -7/Data Miner | Free Kinetic Spear | -7/Data Miner | Free Imp. Thermal Shield | -6/Factory | Downloaded Xenon Bombardment Thruster | -6/Factory | Hacked Robot Schematics ------------------ X-72 Disruptor | -7/Data Miner | Free I-36 Angel | -7/Data Miner | Free I-47 Archangel | -7/Data Miner | Free H-66 Slayer | -7/Data Miner | Free G-67 Veteran | -7/Data Miner | Free L-41 Fighter | -7/Data Miner | Free G-50 Soldier | -7/Data Miner | Free S-27 Virus | -7/Data Miner | Free Fabricated ------------ Nothing Alien Tech Used ----------------- None Achievements -------------- A New Friend Achiever Can't Catch Me Librarian Shopping List The Oracle Wheee! Challenges ------------ None Game ------ Seed LauncherGravmagMachine Manual? 0 Play Time 02:56:20 Cumulative 24.7 hours Start 2021.01.13 @ 20:46:00 End 2021.01.15 @ 20:19:24 Sessions 5 Manual Loads 0 Difficulty Explorer Special Mode None Game No. 5 Rogue 0 Adventurer 0 Explorer 5 Win Type - Total 0 Types 0/0/0/0/0/0/0/0/0 Lore% 17 Gallery% 18 Achievement% 25 Wizard Run 0 Options --------- ASCII 0 Keyboard 0 Movement Mouse Keybinds 0 Fullscreen 2 Font 18/SmallcapsGlow Map View 76x50 Tactical HUD 1 Map Filters NONE Filters NONE Steam 1 RUN: e9f47720-a111-4428-8197-f005ec0006fb